[Event "Gibraltar Masters 18th"]
[Site "Gibraltar"]
[Date "2020.01.24"]
[Round "4.54"]
[White "Libiszewski, Fabien"]
[Black "Borocz, Istvan"]
[Result "1/2-1/2"]
[ECO "B91"]
[WhiteElo "2522"]
[BlackElo "2337"]
[PlyCount "67"]
[EventDate "2020.01.21"]
[EventType "swiss"]
[EventRounds "10"]
[EventCountry "GGB"]
[SourceTitle "BritBase"]
[Source "John Saunders"]
[SourceDate "2021.06.05"]
[SourceVersion "1"]
[SourceVersionDate "2021.06.05"]
[SourceQuality "1"]
[TimeControl "40/100:0"]
[WhiteClock "0:02:10"]
[BlackClock "0:04:32"]

1. e4 {[%emt 0:00:00]} c5 {[%emt 0:00:00]} 2. Nf3 {[%emt 0:00:00]} d6 {[%emt 0:
00:00]} 3. d4 {[%emt 0:00:00]} cxd4 {[%emt 0:00:00]} 4. Nxd4 {[%emt 0:00:00]}
Nf6 {[%emt 0:00:00]} 5. Nc3 {[%emt 0:00:00]} a6 {[%emt 0:00:00]} 6. g3 {
[%emt 0:00:00]} e5 {[%emt 0:00:00]} 7. Nb3 {[%emt 0:00:00]} Be7 {[%emt 0:00:00]
} 8. Bg5 {[%emt 0:00:00]} Nbd7 {[%emt 0:00:00]} 9. a4 {[%emt 0:00:00]} b6 {
[%emt 0:00:00]} 10. Bc4 {[%emt 0:00:00]} Bb7 {[%emt 0:00:00]} 11. Nd2 {[%emt 0:
00:00]} h6 {[%emt 0:00:00]} 12. Be3 {[%emt 0:00:00]} Qc7 {[%emt 0:00:00]} 13.
Qe2 {[%emt 0:00:00]} Nc5 {[%emt 0:00:00]} 14. Bxc5 {[%emt 0:00:00]} Qxc5 {
[%emt 0:00:00]} 15. O-O {[%emt 0:00:00]} O-O {[%emt 0:00:00]} 16. Rad1 {
[%emt 0:00:00]} Rfc8 {[%emt 0:00:00]} 17. Rfe1 {[%emt 0:00:00]} Bd8 {[%emt 0:
00:00]} 18. Bb3 {[%emt 0:00:00]} b5 {[%emt 0:00:00]} 19. axb5 {[%emt 0:00:00]}
Ba5 {[%emt 0:00:00]} 20. Qc4 {[%emt 0:00:00]} Bxc3 {[%emt 0:00:00]} 21. Qxf7+ {
[%emt 0:00:00]} Kh8 {[%emt 0:00:00]} 22. bxc3 {[%emt 0:00:00]} axb5 {[%emt 0:
00:00]} 23. Qg6 {[%emt 0:00:00]} Rf8 {[%emt 0:00:00]} 24. Re3 {[%emt 0:00:00]}
Bc8 {[%emt 0:00:00]} 25. Nf3 {[%emt 0:00:00]} Bg4 {[%emt 0:00:00]} 26. h3 {
[%emt 0:00:00]} Bh5 {[%emt 0:00:00]} 27. Qf5 {[%emt 0:00:00]} Bxf3 {[%emt 0:00:
00]} 28. Rxf3 {[%emt 0:00:00]} Nh7 {[%emt 0:00:00]} 29. Qg4 {[%emt 0:00:00]}
Rxf3 {[%emt 0:00:00]} 30. Qxf3 {[%emt 0:00:00]} Ng5 {[%emt 0:00:00]} 31. Qf5 {
[%emt 0:00:00]} Nh7 {[%emt 0:00:00]} 32. Qf3 {[%emt 0:00:00]} Ng5 {[%emt 0:00:
00]} 33. Qf5 {[%emt 0:00:00]} Nh7 {[%emt 0:00:00]} 34. Qf3 {[%emt 0:00:00]}
1/2-1/2

[Event "Gibraltar Masters 18th"]
[Site "Gibraltar"]
[Date "2020.01.24"]
[Round "4.55"]
[White "Barrish, Daniel"]
[Black "Petrov, Martin"]
[Result "0-1"]
[ECO "D35"]
[WhiteElo "2352"]
[BlackElo "2504"]
[PlyCount "106"]
[EventDate "2020.01.21"]
[EventType "swiss"]
[EventRounds "10"]
[EventCountry "GGB"]
[SourceTitle "BritBase"]
[Source "John Saunders"]
[SourceDate "2021.06.05"]
[SourceVersion "1"]
[SourceVersionDate "2021.06.05"]
[SourceQuality "1"]
[TimeControl "40/100:0"]
[WhiteClock "0:09:24"]
[BlackClock "0:28:07"]

1. d4 {[%emt 0:00:00]} Nf6 {[%emt 0:00:00]} 2. c4 {[%emt 0:00:00]} e6 {[%emt 0:
00:00]} 3. Nc3 {[%emt 0:00:00]} d5 {[%emt 0:00:00]} 4. cxd5 {[%emt 0:00:00]}
exd5 {[%emt 0:00:00]} 5. Bg5 {[%emt 0:00:00]} c6 {[%emt 0:00:00]} 6. e3 {
[%emt 0:00:00]} h6 {[%emt 0:00:00]} 7. Bh4 {[%emt 0:00:00]} Be7 {[%emt 0:00:00]
} 8. Bd3 {[%emt 0:00:00]} Nbd7 {[%emt 0:00:00]} 9. Nge2 {[%emt 0:00:00]} O-O {
[%emt 0:00:00]} 10. O-O {[%emt 0:00:00]} Re8 {[%emt 0:00:00]} 11. f3 {[%emt 0:
00:00]} c5 {[%emt 0:00:00]} 12. Bf2 {[%emt 0:00:00]} b6 {[%emt 0:00:00]} 13. g4
{[%emt 0:00:00]} Nf8 {[%emt 0:00:00]} 14. Kg2 {[%emt 0:00:00]} a6 {[%emt 0:00:
00]} 15. Rh1 {[%emt 0:00:00]} b5 {[%emt 0:00:00]} 16. a3 {[%emt 0:00:00]} Ne6 {
[%emt 0:00:00]} 17. h4 {[%emt 0:00:00]} Bb7 {[%emt 0:00:00]} 18. Bf5 {[%emt 0:
00:00]} Bd6 {[%emt 0:00:00]} 19. Rh3 {[%emt 0:00:00]} g6 {[%emt 0:00:00]} 20.
Bc2 {[%emt 0:00:00]} h5 {[%emt 0:00:00]} 21. g5 {[%emt 0:00:00]} cxd4 {[%emt 0:
00:00]} 22. exd4 {[%emt 0:00:00]} Nd7 {[%emt 0:00:00]} 23. Bg3 {[%emt 0:00:00]}
Nb6 {[%emt 0:00:00]} 24. b3 {[%emt 0:00:00]} Rc8 {[%emt 0:00:00]} 25. Bxd6 {
[%emt 0:00:00]} Qxd6 {[%emt 0:00:00]} 26. Qd2 {[%emt 0:00:00]} Rc7 {[%emt 0:00:
00]} 27. f4 {[%emt 0:00:00]} Bc8 {[%emt 0:00:00]} 28. Re3 {[%emt 0:00:00]} Ng7
{[%emt 0:00:00]} 29. Rxe8+ {[%emt 0:00:00]} Nxe8 {[%emt 0:00:00]} 30. Nd1 {
[%emt 0:00:00]} Ng7 {[%emt 0:00:00]} 31. Ne3 {[%emt 0:00:00]} Re7 {[%emt 0:00:
00]} 32. Kf3 {[%emt 0:00:00]} Bg4+ {[%emt 0:00:00]} 33. Nxg4 {[%emt 0:00:00]}
hxg4+ {[%emt 0:00:00]} 34. Kxg4 {[%emt 0:00:11]} Qe6+ {[%emt 0:00:00]} 35. Kf3
{[%emt 0:00:00]} Qh3+ {[%emt 0:00:00]} 36. Ng3 {[%emt 0:00:00]} Nh5 {[%emt 0:
00:00]} 37. Rg1 {[%emt 0:00:00]} Qxh4 {[%emt 0:00:00]} 38. Nxh5 {[%emt 0:00:00]
} Qxh5+ {[%emt 0:00:00]} 39. Kf2 {[%emt 0:00:05]} Nc8 {[%emt 0:00:00]} 40. Bd3
{[%emt 0:00:40]} Nd6 {[%emt 0:00:00]} 41. Qc1 {[%emt 0:00:00]} Ne4+ {[%emt 0:
00:00]} 42. Bxe4 {[%emt 0:00:00]} Rxe4 {[%emt 0:00:00]} 43. Kg3 {[%emt 0:00:00]
} Qe2 {[%emt 0:00:00]} 44. Rg2 {[%emt 0:00:00]} Re3+ {[%emt 0:00:00]} 45. Kh2 {
[%emt 0:00:00]} Qf3 {[%emt 0:00:00]} 46. f5 {[%emt 0:00:00]} Rc3 {[%emt 0:00:
00]} 47. Qd2 {[%emt 0:00:00]} Rd3 {[%emt 0:00:00]} 48. Qc2 {[%emt 0:00:00]}
Qf4+ {[%emt 0:00:00]} 49. Kg1 {[%emt 0:00:00]} Qxd4+ {[%emt 0:00:00]} 50. Kf1 {
[%emt 0:00:00]} Rf3+ {[%emt 0:00:00]} 51. Ke1 {[%emt 0:00:00]} Qe3+ {[%emt 0:
00:00]} 52. Re2 {[%emt 0:00:00]} Qg1+ {[%emt 0:00:00]} 53. Kd2 {[%emt 0:00:00]}
Qxg5+ {[%emt 0:00:00]} 0-1

[Event "Gibraltar Masters 18th"]
[Site "Gibraltar"]
[Date "2020.01.24"]
[Round "4.56"]
[White "Garcia Martin, Marta"]
[Black "Lei, Tingjie"]
[Result "1/2-1/2"]
[ECO "B90"]
[WhiteElo "2317"]
[BlackElo "2493"]
[PlyCount "78"]
[EventDate "2020.01.21"]
[EventType "swiss"]
[EventRounds "10"]
[EventCountry "GGB"]
[SourceTitle "BritBase"]
[Source "John Saunders"]
[SourceDate "2021.06.05"]
[SourceVersion "1"]
[SourceVersionDate "2021.06.05"]
[SourceQuality "1"]
[TimeControl "40/100:0"]
[WhiteClock "0:03:28"]
[BlackClock "0:10:50"]

1. e4 {[%emt 0:00:00]} c5 {[%emt 0:00:00]} 2. Nf3 {[%emt 0:00:00]} d6 {[%emt 0:
00:00]} 3. d4 {[%emt 0:00:00]} cxd4 {[%emt 0:00:00]} 4. Nxd4 {[%emt 0:00:00]}
Nf6 {[%emt 0:00:00]} 5. Nc3 {[%emt 0:00:00]} a6 {[%emt 0:00:00]} 6. Be3 {
[%emt 0:00:00]} e5 {[%emt 0:00:00]} 7. Nb3 {[%emt 0:00:00]} Be6 {[%emt 0:00:00]
} 8. f3 {[%emt 0:00:00]} h5 {[%emt 0:00:00]} 9. Qd2 {[%emt 0:00:00]} Nbd7 {
[%emt 0:00:00]} 10. Nd5 {[%emt 0:00:00]} Bxd5 {[%emt 0:00:00]} 11. exd5 {
[%emt 0:00:00]} Qc7 {[%emt 0:00:00]} 12. Rc1 {[%emt 0:00:00]} g6 {[%emt 0:00:
00]} 13. Be2 {[%emt 0:00:00]} Bg7 {[%emt 0:00:00]} 14. O-O {[%emt 0:00:00]} O-O
{[%emt 0:00:00]} 15. c4 {[%emt 0:00:00]} b6 {[%emt 0:00:00]} 16. Na1 {[%emt 0:
00:00]} Kh7 {[%emt 0:00:00]} 17. Nc2 {[%emt 0:00:00]} a5 {[%emt 0:00:00]} 18.
Na3 {[%emt 0:00:00]} Nc5 {[%emt 0:00:00]} 19. Nb5 {[%emt 0:00:00]} Qd7 {
[%emt 0:00:00]} 20. b3 {[%emt 0:00:00]} Rfe8 {[%emt 0:00:00]} 21. h3 {[%emt 0:
00:00]} Ng8 {[%emt 0:00:00]} 22. Bd1 {[%emt 0:00:00]} Bh6 {[%emt 0:00:00]} 23.
Bc2 {[%emt 0:00:00]} Rab8 {[%emt 0:00:00]} 24. Rce1 {[%emt 0:00:00]} Na6 {
[%emt 0:00:00]} 25. f4 {[%emt 0:00:00]} f5 {[%emt 0:00:00]} 26. g4 {[%emt 0:00:
00]} e4 {[%emt 0:00:00]} 27. Qd1 {[%emt 0:00:00]} Nb4 {[%emt 0:00:00]} 28. Bb1
{[%emt 0:00:00]} fxg4 {[%emt 0:00:00]} 29. hxg4 {[%emt 0:00:00]} Nd3 {[%emt 0:
00:00]} 30. Bxd3 {[%emt 0:00:00]} exd3 {[%emt 0:00:00]} 31. g5 {[%emt 0:00:00]}
Bg7 {[%emt 0:00:00]} 32. f5 {[%emt 0:00:00]} Re4 {[%emt 0:00:00]} 33. Rf4 {
[%emt 0:00:00]} Rbe8 {[%emt 0:00:00]} 34. fxg6+ {[%emt 0:00:22]} Kxg6 {[%emt 0:
00:00]} 35. Qxd3 {[%emt 0:00:00]} Qh3 {[%emt 0:00:00]} 36. Nxd6 {[%emt 0:00:00]
} Qg3+ {[%emt 0:00:00]} 37. Kf1 {[%emt 0:00:00]} Qh3+ {[%emt 0:00:00]} 38. Kg1
{[%emt 0:00:00]} Qg3+ {[%emt 0:00:00]} 39. Kf1 {[%emt 0:00:00]} Qh3+ {[%emt 0:
00:00]} 1/2-1/2

[Event "Gibraltar Masters 18th"]
[Site "Gibraltar"]
[Date "2020.01.24"]
[Round "4.57"]
[White "Tan, Zhongyi"]
[Black "Divya, Deshmukh"]
[Result "1-0"]
[ECO "A50"]
[WhiteElo "2493"]
[BlackElo "2322"]
[PlyCount "91"]
[EventDate "2020.01.21"]
[EventType "swiss"]
[EventRounds "10"]
[EventCountry "GGB"]
[SourceTitle "BritBase"]
[Source "John Saunders"]
[SourceDate "2021.06.05"]
[SourceVersion "1"]
[SourceVersionDate "2021.06.05"]
[SourceQuality "1"]
[TimeControl "40/100:0"]

1. c4 {[%emt 0:16:34]} b6 {[%emt 0:00:05]} 2. Nc3 {[%emt 0:01:17]} Bb7 {
[%emt 0:00:06]} 3. d4 {[%emt 0:00:09]} Nf6 {[%emt 0:00:25]} 4. f3 {[%emt 0:09:
09]} d5 {[%emt 0:13:51]} 5. cxd5 {[%emt 0:00:08]} Nxd5 {[%emt 0:00:08]} 6. Nxd5
{[%emt 0:00:32]} Bxd5 {[%emt 0:01:22]} 7. e4 {[%emt 0:00:06]} Bb7 {[%emt 0:00:
05]} 8. Be3 {[%emt 0:02:00]} e6 {[%emt 0:09:03]} 9. Qa4+ {[%emt 0:00:32]} Qd7 {
[%emt 0:01:05]} 10. Qxd7+ {[%emt 0:04:27]} Nxd7 {[%emt 0:01:28]} 11. Rc1 {
[%emt 0:00:03]} Rc8 {[%emt 0:08:49]} 12. Kf2 {[%emt 0:04:02]} a6 {[%emt 0:01:
55]} 13. Nh3 {[%emt 0:02:53]} Bd6 {[%emt 0:02:10]} 14. Be2 {[%emt 0:00:13]} O-O
{[%emt 0:02:08]} 15. Rhd1 {[%emt 0:00:36]} b5 {[%emt 0:06:23]} 16. a3 {[%emt 0:
01:09]} Nb6 {[%emt 0:04:04]} 17. Rc2 {[%emt 0:01:08]} f5 {[%emt 0:07:28]} 18.
e5 {[%emt 0:02:27]} Be7 {[%emt 0:00:07]} 19. Rdc1 {[%emt 0:04:13]} c6 {[%emt 0:
02:10]} 20. Nf4 {[%emt 0:05:02]} Kf7 {[%emt 0:00:27]} 21. Bd2 {[%emt 0:00:55]}
Rfd8 {[%emt 0:10:29]} 22. Ba5 {[%emt 0:06:20]} Rxd4 {[%emt 0:00:08]} 23. Bxb6 {
[%emt 0:15:00]} Rxf4 {[%emt 0:00:10]} 24. g3 {[%emt 0:01:25]} Ra4 {[%emt 0:00:
19]} 25. Rc3 {[%emt 0:04:15]} c5 {[%emt 0:24:44]} 26. Bxc5 {[%emt 0:00:10]}
Bxc5+ {[%emt 0:01:14]} 27. Rxc5 {[%emt 0:00:05]} Rxc5 {[%emt 0:00:02]} 28. Rxc5
{[%emt 0:00:07]} Bd5 {[%emt 0:00:02]} 29. Ke3 {[%emt 0:01:30]} g5 {[%emt 0:01:
16]} 30. Rc7+ {[%emt 0:02:39]} Kg6 {[%emt 0:01:10]} 31. Bd1 {[%emt 0:00:06]}
Rc4 {[%emt 0:02:54]} 32. Rxc4 {[%emt 0:00:06]} Bxc4 {[%emt 0:00:01]} 33. f4 {
[%emt 0:01:35]} gxf4+ {[%emt 0:03:05]} 34. gxf4 {[%emt 0:00:09]} Kf7 {[%emt 0:
06:40]} 35. Kd4 {[%emt 0:00:06]} Ke7 {[%emt 0:00:02]} 36. Kc5 {[%emt 0:00:05]}
Kd7 {[%emt 0:00:32]} 37. Kb6 {[%emt 0:00:23]} a5 {[%emt 0:00:29]} 38. Bf3 {
[%emt 0:02:03]} b4 {[%emt 0:00:04]} 39. Bc6+ {[%emt 0:00:09]} Kc8 {[%emt 0:00:
43]} 40. axb4 {[%emt 0:00:04]} axb4 {[%emt 0:00:20]} 41. Kc5 {[%emt 0:00:03]}
Ba2 {[%emt 0:01:53]} 42. Kxb4 {[%emt 0:00:07]} Kc7 {[%emt 0:00:02]} 43. Kc5 {
[%emt 0:00:06]} Bb3 {[%emt 0:00:03]} 44. Bb5 {[%emt 0:01:51]} Bd1 {[%emt 0:00:
03]} 45. b4 {[%emt 0:00:34]} Bc2 {[%emt 0:00:10]} 46. Bc6 {[%emt 0:00:37] Kd6+}
1-0

[Event "Gibraltar Masters 18th"]
[Site "Gibraltar"]
[Date "2020.01.25"]
[Round "5.1"]
[White "Topalov, Veselin"]
[Black "Cheparinov, Ivan"]
[Result "1/2-1/2"]
[ECO "C50"]
[WhiteElo "2738"]
[BlackElo "2686"]
[PlyCount "66"]
[EventDate "2020.01.21"]
[EventType "swiss"]
[EventRounds "10"]
[EventCountry "GGB"]
[SourceTitle "BritBase"]
[Source "John Saunders"]
[SourceDate "2021.06.05"]
[SourceVersion "1"]
[SourceVersionDate "2021.06.05"]
[SourceQuality "1"]
[TimeControl "40/100:0"]
[WhiteClock "0:29:21"]
[BlackClock "0:13:26"]

1. e4 {[%emt 0:00:00]} e5 {[%emt 0:00:00]} 2. Nf3 {[%emt 0:00:00]} Nc6 {
[%emt 0:00:00]} 3. Bc4 {[%emt 0:00:00]} Bc5 {[%emt 0:00:00]} 4. d3 {[%emt 0:00:
00]} Nf6 {[%emt 0:00:00]} 5. Nc3 {[%emt 0:00:00]} h6 {[%emt 0:00:00]} 6. a3 {
[%emt 0:00:00]} a6 {[%emt 0:00:00]} 7. Be3 {[%emt 0:00:00]} d6 {[%emt 0:00:00]}
8. Bxc5 {[%emt 0:00:00]} dxc5 {[%emt 0:00:00]} 9. Nd5 {[%emt 0:00:00]} Be6 {
[%emt 0:00:00]} 10. Ne3 {[%emt 0:00:00]} Bxc4 {[%emt 0:00:00]} 11. Nxc4 {
[%emt 0:00:00]} Qe7 {[%emt 0:00:00]} 12. O-O {[%emt 0:00:00]} Nd7 {[%emt 0:00:
00]} 13. c3 {[%emt 0:00:00]} Nb6 {[%emt 0:00:00]} 14. Ne3 {[%emt 0:00:00]}
O-O-O {[%emt 0:00:00]} 15. Qc2 {[%emt 0:00:00]} a5 {[%emt 0:00:00]} 16. Rfd1 {
[%emt 0:00:00]} Qe6 {[%emt 0:00:00]} 17. b4 {[%emt 0:00:00]} cxb4 {[%emt 0:00:
00]} 18. axb4 {[%emt 0:00:00]} axb4 {[%emt 0:00:00]} 19. d4 {[%emt 0:00:00]} b3
{[%emt 0:00:00]} 20. Qb1 {[%emt 0:00:00]} exd4 {[%emt 0:00:00]} 21. cxd4 {
[%emt 0:00:00]} b2 {[%emt 0:00:00]} 22. Qxb2 {[%emt 0:00:00]} Qxe4 {[%emt 0:00:
00]} 23. d5 {[%emt 0:00:00]} Nxd5 {[%emt 0:00:00]} 24. Ra8+ {[%emt 0:00:00]}
Nb8 {[%emt 0:00:00]} 25. Nxd5 {[%emt 0:00:00]} Rxd5 {[%emt 0:00:00]} 26. Re1 {
[%emt 0:00:00]} Qg6 {[%emt 0:00:00]} 27. Qa2 {[%emt 0:00:00]} Qd6 {[%emt 0:00:
00]} 28. Qa7 {[%emt 0:00:00]} c6 {[%emt 0:00:00]} 29. g3 {[%emt 0:00:00]} Kc7 {
[%emt 0:00:00]} 30. Kg2 {[%emt 0:00:00]} Rd8 {[%emt 0:00:00]} 31. Rb1 {[%emt 0:
00:00]} Rb5 {[%emt 0:00:00]} 32. Rxb5 {[%emt 0:00:00]} cxb5 {[%emt 0:00:00]}
33. Qa5+ {[%emt 0:00:00]} Qb6 {[%emt 0:00:00]} 1/2-1/2

[Event "Gibraltar Masters 18th"]
[Site "Gibraltar"]
[Date "2020.01.25"]
[Round "5.2"]
[White "Durarbayli, Vasif"]
[Black "Wang, Hao"]
[Result "0-1"]
[ECO "C07"]
[WhiteElo "2625"]
[BlackElo "2758"]
[PlyCount "72"]
[EventDate "2020.01.21"]
[EventType "swiss"]
[EventRounds "10"]
[EventCountry "GGB"]
[SourceTitle "BritBase"]
[Source "John Saunders"]
[SourceDate "2021.06.05"]
[SourceVersion "1"]
[SourceVersionDate "2021.06.05"]
[SourceQuality "1"]
[TimeControl "40/100:0"]
[WhiteClock "0:21:00"]
[BlackClock "0:17:33"]

1. e4 {[%emt 0:00:00]} e6 {[%emt 0:00:00]} 2. d4 {[%emt 0:00:00]} d5 {[%emt 0:
00:00]} 3. Nd2 {[%emt 0:00:00]} c5 {[%emt 0:00:00]} 4. Ngf3 {[%emt 0:00:00]}
cxd4 {[%emt 0:00:00]} 5. Nxd4 {[%emt 0:00:00]} Nf6 {[%emt 0:00:00]} 6. exd5 {
[%emt 0:00:00]} Qxd5 {[%emt 0:00:00]} 7. Nb5 {[%emt 0:00:00]} Na6 {[%emt 0:00:
00]} 8. a3 {[%emt 0:00:00]} Bd7 {[%emt 0:00:00]} 9. c4 {[%emt 0:00:00]} Qf5 {
[%emt 0:00:00]} 10. Qf3 {[%emt 0:00:00]} Qxf3 {[%emt 0:00:00]} 11. Nxf3 {
[%emt 0:00:00]} Bxb5 {[%emt 0:00:00]} 12. cxb5 {[%emt 0:00:00]} Nc7 {[%emt 0:
00:00]} 13. h4 {[%emt 0:00:00]} Bc5 {[%emt 0:00:00]} 14. Nd2 {[%emt 0:00:00]}
Ncd5 {[%emt 0:00:00]} 15. g3 {[%emt 0:00:00]} O-O {[%emt 0:00:00]} 16. Bg2 {
[%emt 0:00:00]} Rfd8 {[%emt 0:00:00]} 17. O-O {[%emt 0:00:00]} Ne3 {[%emt 0:00:
00]} 18. Nb3 {[%emt 0:00:00]} Nxf1 {[%emt 0:00:00]} 19. Nxc5 {[%emt 0:00:00]}
Rac8 {[%emt 0:00:00]} 20. b4 {[%emt 0:00:00]} Nxg3 {[%emt 0:00:00]} 21. fxg3 {
[%emt 0:00:00]} b6 {[%emt 0:00:00]} 22. Be3 {[%emt 0:00:00]} Ng4 {[%emt 0:00:
00]} 23. Bg5 {[%emt 0:00:00]} Rd4 {[%emt 0:00:00]} 24. Rc1 {[%emt 0:00:00]} h6
{[%emt 0:00:00]} 25. Bf4 {[%emt 0:00:00]} e5 {[%emt 0:00:00]} 26. Bf3 {[%emt 0:
00:00]} exf4 {[%emt 0:00:00]} 27. Bxg4 {[%emt 0:00:00]} Re8 {[%emt 0:00:00]}
28. gxf4 {[%emt 0:00:00]} Rxf4 {[%emt 0:00:00]} 29. Bd7 {[%emt 0:00:00]} Re3 {
[%emt 0:00:00]} 30. Nb7 {[%emt 0:00:00]} Rg3+ {[%emt 0:00:00]} 31. Kh2 {
[%emt 0:00:00]} Rxa3 {[%emt 0:00:00]} 32. h5 {[%emt 0:00:00]} Rh4+ {[%emt 0:00:
00]} 33. Kg2 {[%emt 0:00:00]} Rxh5 {[%emt 0:00:00]} 34. Nd6 {[%emt 0:00:00]}
Rd5 {[%emt 0:00:00]} 35. Rc8+ {[%emt 0:00:00]} Kh7 {[%emt 0:00:00]} 36. Nxf7 {
[%emt 0:00:00]} Rd2+ {[%emt 0:00:00]} 0-1

[Event "Gibraltar Masters 18th"]
[Site "Gibraltar"]
[Date "2020.01.25"]
[Round "5.3"]
[White "Kaidanov, Gregory"]
[Black "Maghsoodloo, Parham"]
[Result "0-1"]
[ECO "A11"]
[WhiteElo "2546"]
[BlackElo "2674"]
[PlyCount "104"]
[EventDate "2020.01.21"]
[EventType "swiss"]
[EventRounds "10"]
[EventCountry "GGB"]
[SourceTitle "BritBase"]
[Source "John Saunders"]
[SourceDate "2021.06.05"]
[SourceVersion "1"]
[SourceVersionDate "2021.06.05"]
[SourceQuality "1"]
[TimeControl "40/100:0"]
[WhiteClock "0:24:05"]
[BlackClock "0:50:43"]

1. Nf3 {[%emt 0:00:00]} d5 {[%emt 0:00:00]} 2. g3 {[%emt 0:00:00]} Bg4 {
[%emt 0:00:00]} 3. Bg2 {[%emt 0:00:00]} c6 {[%emt 0:00:00]} 4. c4 {[%emt 0:00:
00]} e6 {[%emt 0:00:00]} 5. Ne5 {[%emt 0:00:00]} Bh5 {[%emt 0:00:00]} 6. cxd5 {
[%emt 0:00:00]} exd5 {[%emt 0:00:00]} 7. d4 {[%emt 0:00:00]} Bd6 {[%emt 0:00:
00]} 8. Nc3 {[%emt 0:00:00]} Ne7 {[%emt 0:00:00]} 9. O-O {[%emt 0:00:00]} Nd7 {
[%emt 0:00:00]} 10. Nd3 {[%emt 0:00:00]} O-O {[%emt 0:00:00]} 11. Nf4 {[%emt 0:
00:00]} Bg6 {[%emt 0:00:00]} 12. Nxg6 {[%emt 0:00:00]} hxg6 {[%emt 0:00:00]}
13. Bg5 {[%emt 0:00:00]} f6 {[%emt 0:00:00]} 14. Bd2 {[%emt 0:00:00]} f5 {
[%emt 0:00:00]} 15. Bg5 {[%emt 0:00:00]} Re8 {[%emt 0:00:00]} 16. f3 {[%emt 0:
00:00]} Nf8 {[%emt 0:00:00]} 17. e4 {[%emt 0:00:00]} Ne6 {[%emt 0:00:00]} 18.
Bxe7 {[%emt 0:00:00]} Qxe7 {[%emt 0:00:00]} 19. exd5 {[%emt 0:00:00]} Nxd4 {
[%emt 0:00:00]} 20. Kh1 {[%emt 0:00:00]} c5 {[%emt 0:00:00]} 21. Re1 {[%emt 0:
00:00]} Qg5 {[%emt 0:00:00]} 22. f4 {[%emt 0:00:00]} Rxe1+ {[%emt 0:00:00]} 23.
Qxe1 {[%emt 0:00:00]} Qh5 {[%emt 0:00:00]} 24. Qf2 {[%emt 0:00:00]} g5 {
[%emt 0:00:00]} 25. fxg5 {[%emt 0:00:00]} f4 {[%emt 0:00:00]} 26. g4 {[%emt 0:
00:00]} Qxg4 {[%emt 0:00:00]} 27. Ne4 {[%emt 0:00:00]} Re8 {[%emt 0:00:00]} 28.
h3 {[%emt 0:00:00]} Qd7 {[%emt 0:00:00]} 29. Re1 {[%emt 0:00:00]} f3 {[%emt 0:
00:00]} 30. Bf1 {[%emt 0:00:00]} Rf8 {[%emt 0:00:00]} 31. g6 {[%emt 0:00:00]}
Nf5 {[%emt 0:00:00]} 32. Kg1 {[%emt 0:00:00]} Ng3 {[%emt 0:00:00]} 33. Nxg3 {
[%emt 0:00:00]} Bxg3 {[%emt 0:00:00]} 34. Qxg3 {[%emt 0:00:00]} f2+ {[%emt 0:
00:00]} 35. Qxf2 {[%emt 0:00:00]} Rxf2 {[%emt 0:00:00]} 36. Kxf2 {[%emt 0:00:
00]} Qf5+ {[%emt 0:00:00]} 37. Kg1 {[%emt 0:00:00]} Qxg6+ {[%emt 0:00:00]} 38.
Bg2 {[%emt 0:00:00]} Qd3 {[%emt 0:00:00]} 39. Re6 {[%emt 0:00:10]} c4 {[%emt 0:
00:00]} 40. d6 {[%emt 0:00:04]} b5 {[%emt 0:00:00]} 41. Be4 {[%emt 0:00:00]}
Qd4+ {[%emt 0:00:00]} 42. Kg2 {[%emt 0:00:00]} Kf7 {[%emt 0:00:00]} 43. Re7+ {
[%emt 0:00:00]} Kf6 {[%emt 0:00:00]} 44. Bf3 {[%emt 0:00:00]} Qxd6 {[%emt 0:00:
00]} 45. Re2 {[%emt 0:00:00]} b4 {[%emt 0:00:00]} 46. Be4 {[%emt 0:00:00]} Kg5
{[%emt 0:00:00]} 47. Bc2 {[%emt 0:00:00]} Qd5+ {[%emt 0:00:00]} 48. Kg3 {
[%emt 0:00:00]} Qd4 {[%emt 0:00:00]} 49. b3 {[%emt 0:00:00]} a5 {[%emt 0:00:00]
} 50. Kf3 {[%emt 0:00:00]} Qa1 {[%emt 0:00:00]} 51. Kg3 {[%emt 0:00:00]} Qxa2 {
[%emt 0:00:00]} 52. h4+ {[%emt 0:00:00]} Kf6 {[%emt 0:00:00]} 0-1